bitfinex-derivatives/quotes_ETHF0:USTF0_20250810
["timestamp","ask_amount","ask_price","bid_price","bid_amount"]
[1754853285410,1.5429,4246.9,4246.8,1.494]
[1754853285606,1.5429,4246.9,4246.8,1.2823]
[1754853285804,1.5429,4246.9,4246.8,1.1121]
[1754853286002,0.47086,4246.9,4246.8,0.6049]
[1754853286209,0.47079,4247.6,4247.5,1.494]
[1754853286711,0.47078,4247.7,4247.5,1.494]
[1754853287011,21.7453,4248.1,4248.0,1.2202]
[1754853287212,0.47073,4248.1,4248.0,1.494]
[1754853287403,0.74893,4248.1,4248.0,1.494]
[1754853287599,1.10553,4248.1,4248.0,1.494]
[1754853287799,0.47072,4248.2,4248.0,1.494]
[1754853288004,0.74892,4248.2,4248.1,1.494]
[1754853288205,0.93222,4248.2,4248.1,1.494]
[1754853288909,1.10552,4248.2,4248.1,1.494]
[1754853289407,2.78563501,4248.2,4248.1,1.494]
[1754853289606,2.78563501,4248.2,4248.1,1.2823]
[1754853290608,2.78563501,4248.2,4248.1,0.4347]
[1754853291204,2.78563501,4248.2,4248.1,1.1121]
[1754853291607,0.47079,4247.6,4247.4,0.6774]
[1754853291910,0.6348,4247.6,4247.5,1.494]
[1754853292211,0.93225,4247.9,4247.8,0.6049]
[1754853292404,0.93225,4247.9,4247.8,1.494]
[1754853292600,1.10555,4247.9,4247.8,1.494]
[1754853294210,1.50795,4247.9,4247.8,1.494]
[1754853294410,0.47075,4247.9,4247.8,1.494]
[1754853294913,0.74895,4247.9,4247.8,1.494]
[1754853295413,0.93225,4247.9,4247.8,1.494]
[1754853296113,0.47073,4248.1,4247.8,0.6049]
[1754853296412,0.93223,4248.1,4248.0,0.6049]
[1754853296612,0.93223,4248.1,4248.0,1.4937]
[1754853296909,0.47073,4248.1,4248.0,1.4937]
[1754853297306,0.4615,4248.1,4248.0,1.4937]
[1754853297612,0.4615,4248.1,4247.0,1.17711]
[1754853297613,2.25427501,4248.7,4248.6,1.4937]
[1754853298113,2.78557501,4248.7,4248.6,1.4937]
[1754853298612,2.78557501,4248.7,4248.6,1.2823]
[1754853299013,2.78557501,4248.7,4248.6,1.1121]
[1754853299210,2.01359,4248.4,4248.3,1.1121]
[1754853299608,2.01359,4248.4,4248.3,1.4937]
[1754853304012,0.47075,4248.0,4247.9,0.4347]
[1754853304206,0.4615,4248.0,4247.9,1.2823]
[1754853304411,1.50791,4248.3,4248.2,0.6049]
[1754853304610,0.47069,4248.5,4248.4,0.6049]
[1754853304811,1.10549,4248.5,4248.4,1.4937]
[1754853305011,1.50789,4248.5,4248.4,1.4937]
[1754853305606,2.01489,4248.5,4248.4,1.4937]
[1754853305810,1.09872,4248.2,4248.1,1.4824]
[1754853306115,1.09872,4248.2,4246.9,0.77201501]
[1754853306116,1.3676,4247.7,4247.6,1.1017]
[1754853306416,1.0179,4247.9,4247.8,0.6064]
[1754853306808,1.0179,4247.9,4247.8,1.4824]
[1754853307010,0.47073,4248.1,4247.8,1.07716]
[1754853307205,0.74473,4248.1,4248.0,0.6064]
[1754853307412,0.6417,4248.5,4248.4,0.4257]
[1754853307413,1.28848,4248.5,4248.4,0.4257]
[1754853307618,1.21458,4248.5,4248.4,1.4824]
[1754853307808,1.74038,4248.5,4248.4,1.4824]
[1754853308009,2.01438,4248.5,4248.4,1.4824]
[1754853309006,1.5437,4248.5,4248.4,1.4824]
[1754853309818,0.1761,4248.5,4248.4,1.4824]
[1754853310013,0.4501,4248.5,4248.4,1.4824]
[1754853310616,0.6306,4248.5,4248.4,1.4824]
[1754853310921,1.5437,4248.5,4248.4,1.4824]
[1754853314222,0.274,4248.7,4248.5,1.13498]
[1754853314421,1.5437,4248.6,4248.5,1.95308]
[1754853314623,1.5437,4248.6,4248.5,1.4824]
[1754853316425,0.274,4248.8,4248.7,0.1807]
[1754853316725,1.0179,4248.8,4248.7,1.4824]
[1754853316926,0.6306,4248.8,4248.7,1.4824]
[1754853317121,1.0179,4248.8,4248.7,1.4824]
[1754853317319,1.2723,4248.8,4248.7,1.4824]
[1754853317515,1.2893,4248.8,4248.7,1.4824]
[1754853317721,1.5437,4248.8,4248.7,1.4824]
[1754853317920,1.5437,4248.8,4248.7,1.2707]
[1754853318122,1.2893,4248.8,4248.7,1.4824]
[1754853318424,0.00400114,4249.0,4248.9,1.4824]
[1754853318626,0.005,4249.1,4249.0,1.07703]
[1754853318822,1.10114,4249.8,4249.7,0.6064]
[1754853319127,0.274,4249.2,4248.4,0.2625]
[1754853319325,0.274,4249.0,4248.5,0.4742]
[1754853319529,1.5437,4249.0,4248.9,1.1017]
[1754853320319,1.5437,4249.0,4248.9,0.2567]
[1754853320633,1.5437,4248.7,4248.6,1.1017]
[1754853320927,1.5437,4248.7,4248.6,1.4824]
[1754853322425,0.9157,4248.6,4248.4,0.2625]
[1754853322630,0.9157,4248.6,4248.4,1.4824]
[1754853322631,1.5437,4248.5,4248.4,1.4824]
[1754853322929,1.5437,4248.5,4248.4,1.2707]
[1754853323125,0.9157,4248.5,4248.1,0.2117]
[1754853323429,1.94864501,4248.9,4248.1,0.2117]
[1754853323430,1.09872,4248.3,4248.2,1.1017]
[1754853323636,0.628,4248.3,4248.2,1.2707]
[1754853323927,0.6306,4248.3,4248.2,1.4824]
[1754853324234,1.5437,4248.3,4248.2,1.4824]
[1754853325028,1.5437,4248.3,4248.2,1.2707]
[1754853325524,0.4707,4248.4,4247.7,1.0082]
[1754853325525,0.3566,4247.8,4247.7,1.0082]
[1754853325829,0.3566,4247.8,4247.7,1.4824]
[1754853325830,1.5437,4247.8,4247.7,1.4824]
[1754853326927,1.09879,4247.6,4247.5,0.6064]
[1754853327227,2.01449,4247.6,4247.5,1.2707]
[1754853327532,2.01449,4247.6,4247.5,1.1017]
[1754853328027,0.2544,4246.9,4246.0,0.47096]
[1754853328226,1.177,4247.5,4244.6,4.22586238]
[1754853328227,1.76026,4246.0,4245.9,0.6491]
[1754853328426,0.6613,4246.2,4245.2,0.2117]
[1754853328627,1.37297,4245.9,4245.8,0.6064]
[1754853328827,2.01467,4245.9,4245.8,0.8181]
[1754853329232,2.01467,4245.9,4245.8,0.6064]
[1754853329931,1.62742,4245.5,4245.4,0.8231]
[1754853330133,2.01472,4245.5,4245.4,1.2249]
[1754853330834,2.01472,4245.5,4245.4,0.005]
[1754853331733,2.01472,4245.5,4245.4,0.8442]
[1754853331928,2.01472,4245.5,4245.4,0.4424]
[1754853332129,2.01472,4245.5,4245.4,0.2617]
[1754853332634,2.01472,4245.5,4245.4,1.0132]
[1754853332635,1.17992,4245.5,4245.4,1.0132]
[1754853332835,2.01472,4245.5,4245.4,1.2249]
[1754853334737,0.7089,4246.0,4245.9,0.6064]
[1754853334931,0.7089,4246.0,4245.9,1.4141]
[1754853334932,0.2544,4246.0,4245.9,1.4141]
[1754853335631,0.7141,4246.3,4246.2,1.2319]
[1754853336033,0.898,4246.3,4246.2,1.2319]
[1754853336535,1.1631,4246.3,4246.2,1.2319]
[1754853336729,1.5423,4246.3,4246.2,1.2319]
[1754853337431,0.3792,4246.8,4246.3,0.7957]
[1754853337735,0.7141,4246.7,4246.6,1.2319]
[1754853337931,0.2644,4246.7,4246.6,1.2319]
[1754853338131,1.0105,4247.2,4247.1,0.6307]
[1754853338331,0.3662,4247.2,4247.1,1.2319]
[1754853338534,0.3792,4247.8,4246.9,0.6012]
[1754853338732,0.3792,4247.8,4247.4,0.3893]
[1754853338733,0.47077,4247.7,4247.4,0.3893]
[1754853338936,0.47077,4247.7,4246.5,1.17727]
[1754853338937,0.6313,4247.0,4246.9,0.6654]
[1754853339132,0.6313,4246.7,4246.6,0.836]
[1754853339332,1.5423,4246.7,4246.6,1.2319]
[1754853339638,1.5423,4246.7,4246.6,1.70279]
[1754853339838,1.5423,4246.7,4246.6,1.2319]
[1754853341139,0.47085,4247.1,4246.8,0.47086]
[1754853341341,1.10215,4247.1,4247.0,0.6307]
[1754853341543,1.10215,4247.1,4247.0,1.02]
[1754853341935,2.01315,4247.1,4247.0,1.02]
[1754853342337,2.01315,4247.1,4247.0,0.836]
[1754853342541,1.10217,4246.9,4246.8,0.2761]
[1754853342743,2.01317,4246.9,4246.8,0.836]
[1754853343141,2.01317,4246.9,4246.1,0.47095]
[1754853343142,0.47091,4246.5,4246.1,0.47095]
[1754853343346,1.2749,4246.4,4246.3,1.49093]
[1754853343639,0.47085,4247.1,4246.3,0.1945]
[1754853343840,2.01315,4247.1,4247.0,1.02]
[1754853344043,2.01315,4247.1,4247.0,1.2319]
[1754853344839,2.01315,4247.1,4247.0,1.02]
[1754853346243,2.01315,4247.1,4247.0,1.70275]
[1754853346244,1.5423,4247.1,4247.0,1.70275]
[1754853346444,1.1631,4247.1,4247.0,1.89725]
[1754853346745,0.8957,4247.7,4247.6,1.2319]
[1754853347046,0.91972,4248.2,4248.1,1.2319]
[1754853347247,1.48122,4248.2,4248.1,1.2319]
[1754853347447,1.2779,4248.2,4248.1,1.2319]
[1754853347643,1.1631,4248.2,4248.1,1.2319]
[1754853348446,1.5423,4248.2,4248.1,1.2319]
[1754853349245,1.5423,4248.2,4248.1,1.02]
[1754853349546,0.2644,4248.2,4248.1,1.2319]
[1754853349843,0.7141,4248.2,4248.1,1.4264]
[1754853350047,0.898,4248.2,4248.1,1.4264]
[1754853350245,0.2644,4248.2,4248.1,1.4264]
[1754853351150,1.5423,4248.5,4248.4,1.10139]
[1754853351448,2.01298,4248.5,4248.4,1.2319]
[1754853351643,0.47064,4248.9,4248.4,1.2319]
[1754853351850,0.1823,4248.6,4248.5,1.70258]
[1754853352043,1.1631,4248.6,4248.5,1.2319]
[1754853352249,1.5423,4248.6,4248.5,1.2319]
[1754853352442,1.1631,4248.6,4248.5,1.2319]
[1754853352647,1.2779,4248.9,4248.8,1.2319]
[1754853352845,0.8987,4248.9,4248.8,1.70255]
[1754853353245,0.2644,4248.9,4248.8,1.89705]
[1754853353442,0.898,4248.9,4248.8,1.89705]
[1754853354051,1.1631,4248.9,4248.8,1.2319]
[1754853354242,0.00462947,4249.0,4248.9,1.89704]
[1754853354444,0.00462947,4249.0,4248.9,1.4264]
[1754853354645,1.16772947,4249.0,4248.9,1.2319]
[1754853354952,1.54692947,4249.0,4248.9,1.2319]
[1754853355345,0.1823,4248.4,4248.3,0.6307]
[1754853355651,1.5423,4248.4,4248.3,1.70261]
[1754853355852,1.1631,4248.4,4248.3,1.89711]
[1754853356248,1.1631,4248.4,4248.3,1.70261]
[1754853356453,1.5423,4248.4,4248.3,1.70261]
[1754853356754,0.73965947,4249.0,4248.9,1.4264]
[1754853356957,2.01755947,4249.0,4248.9,1.2319]
[1754853357643,2.01755947,4249.0,4248.9,1.02]
[1754853357849,1.5423,4248.7,4248.6,0.9558]
[1754853358146,1.5423,4248.7,4248.6,1.02]
[1754853359055,1.5423,4248.7,4248.6,0.836]
[1754853359550,1.5423,4248.4,4248.3,1.02]
[1754853359950,2.01299,4248.4,4248.3,0.2761]
[1754853360655,2.01299,4248.4,4248.3,0.6654]
[1754853360950,1.5423,4248.0,4247.9,0.836]
[1754853361456,1.5423,4248.0,4247.9,1.2319]
[1754853363153,1.5423,4247.8,4247.7,1.13617]
[1754853363655,1.5423,4247.8,4247.7,1.30677]
[1754853363856,1.5423,4247.8,4247.7,1.49077]
[1754853364149,1.5423,4247.8,4247.7,0.47077]
[1754853364362,1.5423,4247.7,4247.6,0.74688]
[1754853364661,1.5423,4247.7,4247.6,1.30678]
[1754853364959,1.5423,4247.7,4247.6,1.70268]
[1754853365746,0.6236,4247.6,4247.5,0.47079]
[1754853365947,1.1619,4247.6,4247.5,1.48559]
[1754853366147,1.5633,4247.6,4247.5,1.69739]
[1754853366452,2.03408,4247.6,4247.4,0.4708]
[1754853366757,1.5633,4247.5,4247.4,0.4708]
[1754853367053,1.5633,4247.4,4247.3,1.48561]
[1754853367751,1.5633,4247.4,4247.3,0.47081]
[1754853368157,1.5633,4247.4,4247.3,1.48561]
[1754853368352,1.5633,4247.4,4247.3,1.69741]
[1754853368753,1.5633,4247.8,4247.7,1.69737]
[1754853369151,1.5633,4247.8,4247.7,1.0148]
[1754853369352,1.5633,4247.8,4247.7,0.2644]
[1754853369646,0.47079,4247.6,4247.5,0.47079]
[1754853369849,2.03409,4247.6,4247.4,0.4708]
[1754853370056,1.5633,4247.5,4247.4,0.4708]
[1754853370256,1.5633,4247.5,4247.4,1.129]
[1754853370454,1.5633,4247.5,4247.4,1.4856]
[1754853370648,1.5633,4247.5,4247.4,0.7352]
[1754853371360,1.5633,4247.5,4247.4,1.129]
[1754853371759,1.5633,4247.5,4247.4,0.7352]
[1754853372356,1.5633,4247.5,4247.4,1.6974]
[1754853373962,1.5633,4247.5,4247.4,1.4856]
[1754853374563,1.5633,4247.5,4247.4,1.6974]
[1754853374863,1.5633,4247.5,4247.4,1.4856]
[1754853376362,1.5633,4247.5,4247.4,1.3051]
[1754853377363,1.5633,4247.5,4247.4,1.6974]
[1754853379867,0.47077,4247.8,4247.7,0.47077]
[1754853380069,1.94873501,4248.5,4247.0,21.568]
[1754853380070,1.5633,4248.2,4248.1,1.2266]
[1754853381568,1.5633,4248.2,4248.1,1.0148]
[1754853384067,1.5633,4248.2,4248.1,0.2644]
[1754853384468,1.5633,4248.2,4248.1,0.8343]
[1754853384661,0.2646,4248.2,4248.1,1.2266]
[1754853384867,0.2646,4248.2,4248.1,1.421]
[1754853385069,0.1847,4248.8,4248.2,1.1768]
[1754853385370,0.1847,4248.8,4248.7,1.69726]
[1754853385371,1.2987,4248.8,4248.7,1.69726]
[1754853385875,1.5633,4248.8,4248.7,1.69726]
[1754853386571,1.5633,4248.8,4248.7,1.0148]
[1754853386970,0.90192947,4249.0,4248.9,1.2266]
[1754853387168,1.30332947,4249.0,4248.9,1.2266]
[1754853387568,1.56792947,4249.0,4248.9,1.2266]
[1754853387763,0.00462947,4249.0,4248.9,1.2266]
[1754853387970,0.26922947,4249.0,4248.9,1.421]
[1754853388173,0.8882,4248.8,4248.7,0.47066]
[1754853388372,1.5633,4248.8,4248.7,1.69726]
[1754853389076,1.5633,4248.8,4248.7,1.89166]
[1754853389476,1.5633,4248.8,4248.7,1.69726]
[1754853390477,0.6236,4248.6,4247.8,22.74089]
[1754853390677,0.6236,4248.6,4248.5,0.47068]
[1754853390877,0.6236,4248.6,4248.5,1.69708]
[1754853391277,0.6236,4248.6,4248.5,1.2264]
[1754853391278,1.5633,4248.6,4248.5,1.2264]
[1754853391481,1.5633,4248.6,4248.5,1.0148]
[1754853391771,1.5633,4248.6,4248.5,0.2644]
[1754853391976,1.5633,4248.6,4248.5,0.73508]
[1754853392178,1.5633,4248.6,4248.5,1.12888]
[1754853392376,1.5633,4248.6,4248.5,0.8343]
[1754853392879,1.5633,4248.6,4248.5,0.2644]
[1754853393475,0.6236,4248.0,4247.9,1.09174]
[1754853393779,1.1619,4248.0,4247.9,1.30334]
[1754853393977,1.1619,4248.0,4247.9,1.49754]
[1754853394280,1.1619,4248.0,4247.9,1.89134]
[1754853394481,0.2646,4248.0,4247.9,1.89134]
[1754853395477,1.1542,4248.3,4248.2,1.48522]
[1754853395683,1.5479,4248.3,4248.2,1.48522]
[1754853395885,1.5479,4248.3,4248.2,1.69612]
[1754853396382,2.01861,4248.3,4248.2,1.0145]
[1754853396572,1.1441,4248.3,4248.2,1.1964]
[1754853396775,1.1441,4248.3,4248.2,1.4073]
[1754853396977,1.5378,4248.3,4248.2,1.4073]
[1754853397182,1.5378,4248.3,4248.2,1.2138]
[1754853397683,1.5378,4248.3,4248.2,0.8261]
[1754853397882,1.5378,4248.3,4248.2,0.6505]
[1754853398084,1.5378,4248.3,4248.2,0.257]
[1754853398681,1.5378,4248.3,4248.2,0.6505]
[1754853398874,2.01972,4248.2,4248.1,0.47072]
[1754853399076,2.01972,4248.2,4248.0,0.47073]
[1754853399077,1.1948,4248.1,4248.0,0.47073]
[1754853399280,1.549,4248.1,4248.0,0.72773]
[1754853399480,1.1553,4248.1,4248.0,1.87803]
[1754853400075,0.47068,4248.6,4248.0,0.6044]
[1754853400275,1.549,4248.7,4248.6,0.8203]
[1754853400479,1.549,4248.7,4248.6,1.20973438]
[1754853400984,1.549,4248.7,4248.6,0.99883438]
[1754853401183,1.549,4248.7,4248.6,0.64643438]
[1754853401383,1.549,4248.7,4248.6,1.20973438]
[1754853401988,0.57701846,4249.6,4248.6,1.20973438]
[1754853402287,2.01959,4249.3,4249.2,1.2138]
[1754853402478,2.01959,4249.3,4248.8,0.1935]
[1754853402678,0.9338,4249.2,4249.0,0.86412]
[1754853402883,1.549,4249.1,4249.0,1.29672]
[1754853403387,1.549,4249.1,4249.0,0.8261]
[1754853403583,1.1553,4249.1,4249.0,1.0029]
[1754853403781,1.1553,4249.1,4249.0,1.2138]
[1754853403983,1.1553,4249.1,4249.0,1.4073]
[1754853404380,1.1553,4249.1,4249.0,1.2138]
[1754853404581,1.549,4249.1,4249.0,1.2138]
[1754853405391,1.1553,4249.1,4249.0,1.2138]
[1754853405591,0.2765,4249.1,4249.0,1.4073]
[1754853407089,1.1553,4249.1,4249.0,1.0029]
[1754853407282,0.90837,4249.6,4249.5,0.47057]
[1754853407487,2.01957,4249.6,4249.5,1.0029]
[1754853407689,2.01957,4249.6,4249.5,1.2138]
[1754853408393,1.549,4249.7,4249.6,1.2138]
[1754853408786,1.549,4249.7,4249.6,1.0029]
[1754853409183,0.6152,4249.7,4248.9,1.1766]
[1754853409389,1.549,4249.6,4249.5,1.68436]
[1754853409591,0.8943,4249.6,4249.5,1.87786]
[1754853409789,0.4539,4249.6,4249.5,1.87786]
[1754853410187,0.7175,4249.6,4249.5,1.87786]
[1754853410386,1.549,4249.6,4249.5,1.2138]
[1754853410786,2.01956,4249.6,4249.5,1.0029]
[1754853410995,2.01956,4249.6,4249.4,0.47058]
[1754853411192,0.6152,4249.9,4249.8,1.07993]
[1754853411387,2.01953,4249.9,4249.8,1.2138]
[1754853411583,0.77201501,4250.7,4249.6,0.96551501]
[1754853411584,1.04745846,4250.7,4249.6,0.96551501]
[1754853411797,0.6152,4250.3,4250.2,1.0029]
[1754853411990,1.549,4250.3,4249.9,0.6044]
[1754853412290,0.2636,4250.3,4250.2,0.4705]
[1754853412489,0.2636,4250.3,4249.4,1.17646]
[1754853412490,1.2725,4250.5,4250.4,1.29077]
[1754853412691,1.549,4250.5,4250.4,1.29077]
[1754853412895,0.6307,4250.5,4250.4,1.48427]
[1754853413098,0.6307,4250.5,4250.4,1.87777]
[1754853413397,0.2765,4250.5,4250.4,1.87777]
[1754853413599,1.1,4251.5,4251.3,0.8029]
[1754853413895,1.4542,4251.5,4250.9,0.3935]
[1754853414196,1.4542,4251.5,4251.0,0.6094]
[1754853414197,1.1,4251.5,4251.0,0.6094]
[1754853414397,2.01936,4251.4,4251.3,1.0029]
[1754853414895,1.1,4251.5,4251.4,0.3935]
[1754853415099,1.84686,4251.5,4251.4,1.4073]
[1754853415301,3.11936,4251.5,4251.4,1.2138]
[1754853415502,1.549,4251.2,4251.1,0.6505]
[1754853415689,1.549,4251.2,4251.1,0.257]
[1754853415894,1.549,4250.9,4250.8,0.257]
[1754853416094,1.549,4250.7,4250.6,0.8261]
[1754853416403,1.549,4250.4,4250.3,1.2138]
[1754853417397,1.45241,4251.4,4250.4,0.6044]
[1754853417602,0.92437,4250.5,4250.4,1.2138]
[1754853417989,0.47047,4250.5,4250.4,1.4073]
[1754853418195,0.47046,4250.6,4250.5,1.4073]
[1754853418401,0.74696,4250.6,4250.5,1.4073]
[1754853419296,2.01946,4250.6,4250.5,1.2138]
[1754853419798,0.2765,4251.3,4250.8,0.4274]
[1754853419999,1.36211,4250.9,4250.8,0.8612]
[1754853420300,1.1,4251.5,4251.4,0.5999]
[1754853420301,2.85575,4251.5,4251.4,0.5999]
[1754853420494,3.11935,4251.5,4251.4,0.8612]
[1754853420888,3.11935,4251.5,4251.4,0.1768]
[1754853421102,0.47048,4250.4,4250.3,0.4338]
[1754853421400,0.74698,4250.4,4250.3,0.8612]
[1754853421993,1.18538,4250.4,4250.3,0.8612]
[1754853422196,0.47048,4250.4,4250.3,0.8612]
[1754853422498,0.74698,4250.4,4250.3,0.8612]
[1754853422804,1.84685,4251.5,4251.4,0.1177]
[1754853423107,1.18531,4251.0,4250.9,0.1177]
[1754853423301,0.74691,4251.0,4250.9,0.1177]
[1754853423501,0.2765,4251.0,4250.9,0.1912]
[1754853424002,1.549,4251.0,4250.9,0.1912]
[1754853424209,1.2854,4250.9,4250.8,0.1177]
[1754853424502,0.6152,4250.6,4250.5,0.1912]
[1754853424705,1.549,4250.6,4250.5,0.1912]
[1754853424904,0.2765,4250.6,4250.5,0.1912]
[1754853425198,1.1,4251.5,4251.4,0.1177]
[1754853425396,1.84685,4251.5,4251.4,0.1912]
[1754853425595,0.9025,4251.2,4251.1,0.1905]
[1754853425799,1.5603,4251.2,4251.1,0.1905]
[1754853426000,1.5603,4251.2,4251.1,0.1172]
[1754853426201,1.5603,4251.1,4251.0,0.1172]
[1754853426396,1.1,4251.5,4251.0,0.1172]
[1754853426704,2.6603,4251.5,4251.4,0.1905]
[1754853427202,2.2579,4251.5,4251.4,0.1905]
[1754853428105,2.6603,4251.5,4251.0,0.0733]
[1754853428402,0.6578,4251.4,4250.7,0.0733]
[1754853428598,0.2769,4251.4,4250.7,0.0733]
[1754853428803,1.5603,4251.4,4251.3,0.1905]
[1754853429002,1.5603,4251.4,4251.3,0.1172]
[1754853429200,0.9347,4251.3,4250.6,0.0733]
[1754853429504,0.4024,4251.0,4250.0,0.77201501]
[1754853429704,0.9025,4250.9,4250.8,0.1172]
[1754853430001,1.5603,4250.9,4250.8,0.1172]
[1754853430398,1.5603,4250.9,4250.2,0.0733]
[1754853430399,1.49842,4250.9,4250.2,0.0733]
[1754853430703,0.881,4250.6,4250.5,0.1172]
[1754853431000,0.881,4250.6,4250.5,0.1905]
[1754853431001,1.2834,4250.6,4250.5,0.1905]
[1754853431396,1.5603,4250.6,4250.5,0.1905]
[1754853432001,1.5603,4250.6,4250.0,22.046]
[1754853432002,1.75385,4250.6,4249.8,0.0733]
[1754853432201,0.6578,4250.4,4249.8,0.0733]
[1754853432403,1.24246501,4250.6,4249.7,55.937]
[1754853432602,1.2834,4250.0,4249.9,0.1905]
[1754853432803,1.5603,4250.0,4249.9,0.1905]
[1754853434104,1.5603,4250.0,4248.8,2.11293119]
[1754853434105,0.5323,4249.9,4249.3,0.0733]
[1754853434404,0.9783,4249.4,4249.3,0.1905]
[1754853435000,1.1579,4249.4,4249.3,0.1905]
[1754853435206,1.5603,4249.4,4249.3,0.1172]
[1754853436506,1.5603,4249.3,4249.2,0.1172]
[1754853436704,1.14991,4249.2,4248.5,33.884]
[1754853436907,1.5603,4248.6,4248.5,33.884]
[1754853437103,1.5603,4248.6,4247.8,2.8849462]
[1754853437304,1.17639,4249.7,4247.9,22.0923]
[1754853437305,1.5603,4248.5,4247.9,22.0923]
[1754853437506,0.6256,4248.1,4248.0,3.00898274]
[1754853437700,1.5603,4248.1,4247.9,25.02798274]
[1754853437908,0.2769,4248.1,4248.0,22.2145]
[1754853438404,1.1579,4248.1,4248.0,0.1905]
[1754853438609,1.5603,4248.1,4248.0,22.2125]
[1754853439115,2.03103,4248.1,4248.0,0.1172]
[1754853439311,2.03103,4248.1,4248.0,0.1905]
[1754853439312,1.5603,4248.1,4248.0,0.1905]
[1754853439510,2.03103,4248.1,4248.0,0.1172]
[1754853439901,1.5603,4248.1,4248.0,0.1172]
[1754853441112,0.6256,4247.8,4247.7,0.122]
[1754853441312,1.5603,4247.8,4247.7,22.1512]
[1754853441512,1.5603,4247.8,4247.7,22.2255]
[1754853442500,1.1579,4247.8,4247.7,22.028]
[1754853442706,1.1579,4247.5,4247.4,0.1232]
[1754853443009,1.1579,4247.5,4247.4,0.1975]
[1754853443313,1.5603,4247.5,4247.4,22.2095]
[1754853447314,1.5603,4247.5,4247.4,22.1835]
[1754853447514,1.5603,4247.5,4247.0,0.77201501]
[1754853447515,1.09641,4247.4,4247.1,0.0755]
[1754853447716,1.1579,4247.1,4247.0,0.96951501]
[1754853448014,1.5603,4247.1,4247.0,0.96951501]
[1754853448214,1.5603,4247.1,4247.0,22.96551501]
[1754853448912,1.5603,4247.1,4247.0,22.1173]
[1754853449112,1.5603,4247.1,4247.0,0.1975]
[1754853449313,1.5603,4247.1,4247.0,22.1895]
[1754853450710,1.5603,4247.1,4247.0,0.1975]
[1754853450915,1.5603,4247.1,4247.0,22.1885]
[1754853451318,1.5603,4247.1,4247.0,22.1142]
[1754853451916,1.5603,4247.1,4247.0,22.1885]
[1754853452410,1.5603,4247.1,4247.0,22.1765]
[1754853452614,1.5603,4247.1,4247.0,0.1975]
[1754853452812,1.5603,4247.1,4247.0,22.1675]
[1754853453112,1.17695,4247.7,4246.4,0.89401501]
[1754853453113,0.9783,4246.5,4246.4,0.89401501]
[1754853453307,1.1579,4246.5,4246.4,0.89401501]
[1754853453519,1.1579,4246.5,4246.4,22.85701501]
[1754853453720,1.1579,4246.5,4246.4,0.96951501]
[1754853453922,1.5603,4246.5,4246.4,22.93351501]
[1754853454216,1.5603,4246.5,4246.4,0.96951501]
[1754853454416,1.5603,4246.5,4246.4,0.1975]
[1754853454608,1.5603,4246.5,4246.4,22.1565]
[1754853455210,1.5603,4246.5,4246.4,22.1535]
[1754853457425,1.5603,4246.5,4246.4,0.1975]
[1754853457629,1.5603,4246.5,4246.4,22.1425]
[1754853458137,1.5603,4246.5,4246.4,0.1975]
[1754853458334,1.5603,4246.5,4246.4,22.1405]
[1754853458735,1.5603,4246.5,4246.4,22.1385]
[1754853460237,0.47089,4246.7,4246.4,22.71301501]
[1754853460536,1.08311,4246.5,4246.4,0.77201501]
[1754853460832,1.08311,4246.5,4246.4,22.82051501]
[1754853461038,1.98421,4246.5,4246.4,22.89561501]
[1754853461431,1.98421,4246.5,4246.4,0.96561501]
[1754853461632,1.98421,4246.5,4246.4,22.89361501]
[1754853461833,1.98421,4246.5,4246.4,22.1216]
[1754853462138,1.98421,4246.5,4246.4,22.1166]
[1754853462341,1.5133,4246.5,4246.4,22.1166]
[1754853462732,0.6366,4246.4,4246.1,33.899]
[1754853462940,1.17716,4247.0,4246.1,33.899]
[1754853462941,1.5133,4246.2,4246.1,33.899]
[1754853463142,1.5133,4246.2,4246.1,55.815]
[1754853463842,1.5133,4246.2,4246.1,55.821]
[1754853464042,0.47095,4246.1,4245.6,0.77201501]
[1754853464337,0.7027,4245.7,4245.6,0.89161501]
[1754853464532,0.7027,4245.7,4245.6,22.80861501]
[1754853464737,1.1348,4245.7,4245.6,0.96561501]
[1754853465042,1.5133,4245.7,4245.6,22.88161501]
[1754853465236,1.5133,4245.7,4245.6,0.96561501]
[1754853465437,1.5133,4245.7,4245.6,22.87761501]
[1754853465637,1.1348,4245.7,4245.6,22.87761501]
[1754853465944,1.5133,4245.7,4245.6,22.87761501]
[1754853466533,1.5133,4245.7,4245.6,0.1196]
[1754853466742,1.9843,4245.7,4245.6,21.905]
[1754853467138,1.98432,4245.5,4245.4,0.1246]
[1754853467342,1.98432,4245.5,4245.4,0.005]
[1754853468041,1.98432,4245.5,4245.4,21.913]
[1754853468442,1.98432,4245.5,4245.4,0.005]
[1754853469842,0.77201501,4246.4,4245.5,0.074]
[1754853469843,0.5226,4246.4,4245.5,0.074]
[1754853470043,1.2488,4246.4,4246.3,0.1936]
[1754853470444,1.71972,4246.4,4246.3,0.1936]
[1754853470644,1.98422,4246.4,4246.3,0.1936]
[1754853471040,1.98422,4246.4,4245.6,0.77201501]
[1754853471041,0.5226,4246.1,4245.6,0.77201501]
[1754853471248,0.6122,4245.7,4245.6,0.1196]
[1754853471547,1.5133,4245.7,4245.6,0.1936]
[1754853471741,1.5133,4245.7,4245.6,22.1176]